bitfinex-derivatives/quotes_ETHF0:USTF0_20250309
["timestamp","ask_amount","ask_price","bid_price","bid_amount"]
[1741500337835,3.2078,2181.4,2181.0,0.49208625]
[1741500338036,3.2078,2181.4,2181.1,0.49208625]
[1741500338330,3.2078,2181.4,2180.9,1.997]
[1741500338529,3.2078,2181.4,2181.0,1.09578683]
[1741500338731,3.2078,2181.4,2181.1,0.49108683]
[1741500338930,3.2078,2181.4,2181.0,0.6047]
[1741500339827,3.2078,2181.4,2181.0,1.09541472]
[1741500340033,3.2078,2181.4,2181.0,0.6047]
[1741500340733,3.2078,2181.4,2181.1,0.6028]
[1741500341332,3.2078,2181.4,2181.0,0.6047]
[1741500341636,3.2078,2181.4,2180.7,1.09302009]
[1741500341831,3.2078,2180.9,2180.7,1.2287]
[1741500342032,3.2078,2181.2,2180.7,1.2287]
[1741500342226,0.455,2181.5,2180.7,1.2287]
[1741500342227,3.2078,2181.1,2180.7,1.2287]
[1741500345134,3.2078,2181.1,2180.8,0.6375]
[1741500347637,6.1283,2181.5,2180.8,0.6375]
[1741500351437,6.1283,2181.5,2180.8,1.127739]
[1741500351635,4.1273,2181.5,2180.8,1.127739]
[1741500352037,4.1273,2181.5,2180.8,1.12773499]
[1741500353042,4.1273,2181.5,2180.9,0.49023499]
[1741500353237,4.1273,2181.5,2180.8,0.6375]
[1741500353434,4.1273,2181.5,2180.9,0.49028392]
[1741500353639,4.1273,2181.5,2180.8,0.6375]
[1741500353946,4.1273,2181.5,2180.9,1.995]
[1741500354142,3.2078,2181.0,2180.8,0.49030335]
[1741500354341,3.2078,2181.0,2180.5,1.26660062]
[1741500354538,0.8786,2180.9,2180.5,1.26660062]
[1741500355944,3.2078,2181.0,2180.5,1.26660062]
[1741500356248,3.2078,2181.0,2180.6,0.6447]
[1741500358045,3.2078,2181.3,2180.7,0.49102451]
[1741500358242,3.2078,2181.3,2180.8,0.6183]
[1741500359649,0.599,2181.2,2180.8,0.6183]
[1741500361047,3.2078,2180.9,2180.5,4.47440062]
[1741500361348,0.6328,2180.8,2180.5,4.47440062]
[1741500361646,0.6328,2180.8,2180.5,4.1326]
[1741500362249,0.5504,2180.6,2180.5,4.1326]
[1741500363346,0.5504,2180.6,2180.5,4.62548259]
[1741500364850,0.5504,2180.6,2180.5,4.62548426]
[1741500366145,3.7582,2180.6,2180.5,0.9248]
[1741500367647,3.7582,2180.6,2180.1,0.00688531]
[1741500367648,9.56544404,2180.6,2180.1,0.00688531]
[1741500367847,3.7583,2180.2,2180.1,0.00688531]
[1741500368848,5.7583,2180.2,2180.1,0.00688531]
[1741500369451,0.55058,2179.9,2179.6,0.6225]
[1741500369754,0.55067,2179.6,2179.4,0.612]
[1741500370054,0.55067,2179.6,2179.5,0.6225]
[1741500373260,3.75847,2179.6,2179.5,0.6225]
[1741500373655,0.5507,2179.4,2179.3,0.00688531]
[1741500374949,0.5507,2179.4,2178.7,0.49072014]
[1741500374950,0.55086,2178.8,2178.7,0.49072014]
[1741500375151,0.55091,2178.6,2178.5,1.08912014]
[1741500375353,0.55091,2178.6,2178.5,0.5984]
[1741500376151,3.2078,2179.1,2178.5,0.5984]
[1741500376357,0.55091,2178.6,2178.5,0.5984]
[1741500376757,0.5509,2178.7,2178.5,0.5984]
[1741500376960,3.2078,2179.1,2178.5,0.5984]
[1741500377161,0.55091,2178.7,2178.5,0.5984]
[1741500377366,3.2078,2179.1,2178.5,0.5984]
[1741500377558,0.55091,2178.6,2178.5,0.5984]
[1741500379264,4.58481,2179.1,2178.5,0.5984]
[1741500379459,0.5509,2178.7,2178.5,0.5984]
[1741500379763,0.55087,2178.8,2178.5,0.5984]
[1741500380560,3.2078,2179.1,2178.5,0.5984]
[1741500381054,0.55091,2178.6,2178.5,0.5984]
[1741500381266,3.2078,2179.1,2178.5,0.5984]
[1741500381455,0.55091,2178.6,2178.5,0.5984]
[1741500389581,3.2078,2178.8,2178.5,0.5984]
[1741500389783,5.1998,2179.1,2178.6,0.5959]
[1741500389979,0.55088,2178.7,2178.6,0.5959]
[1741500393180,5.1998,2179.1,2178.6,0.5959]
[1741500393380,0.55087,2178.8,2178.6,0.5959]
[1741500394688,0.55084,2178.9,2178.6,1.14679]
[1741500394883,5.1998,2179.1,2178.6,0.5959]
[1741500395090,0.55084,2178.9,2178.6,1.14679]
[1741500395387,0.55084,2178.9,2178.7,0.491154]
[1741500395684,0.55083,2178.9,2178.6,1.14679]
[1741500395891,0.55086,2178.8,2178.7,0.49119963]
[1741500396182,3.2078,2179.0,2178.6,0.5959]
[1741500397082,0.55088,2178.7,2178.6,0.5959]
[1741500397284,0.55088,2178.7,2178.6,1.08759082]
[1741500398087,0.55088,2178.7,2178.6,0.49169082]
[1741500398389,0.55091,2178.6,2178.5,0.5984]
[1741500398688,0.55091,2178.6,2178.5,1.09087525]
[1741500400092,0.55096,2178.4,2178.3,0.00688531]
[1741500400294,3.75876,2178.4,2178.3,0.49965328]
[1741500400591,3.2078,2178.4,2178.3,0.00688531]
[1741500400791,0.55094,2178.5,2178.3,0.49979675]
[1741500401095,0.55094,2178.5,2178.4,0.49290114]
[1741500401587,0.55779531,2178.6,2178.4,0.49290114]
[1741500401892,0.55779531,2178.6,2178.5,1.69570114]
[1741500403490,0.55779531,2178.6,2178.5,1.69651615]
[1741500403686,0.55779531,2178.6,2178.5,0.49371615]
[1741500410494,0.55096,2178.4,2178.3,0.59858531]
[1741500410698,0.55096,2178.4,2178.3,0.50083549]
[1741500411699,0.55096,2178.4,2178.3,0.50079179]
[1741500411901,1.19356,2178.4,2178.3,0.00688531]
[1741500418293,1.19356,2178.4,2178.3,5.31e-06]
[1741500419000,5.19356,2178.4,2178.3,5.31e-06]
[1741500420802,5.64856,2178.4,2178.3,5.31e-06]
[1741500422497,5.0976,2178.4,2177.6,1.2589]
[1741500422703,0.55113,2177.7,2177.6,1.2589]
[1741500424702,3.75893,2177.7,2177.6,1.2589]
[1741500426210,5.74993,2177.7,2177.6,0.6231]
[1741500427212,5.1988,2177.7,2177.4,0.65098531]
[1741500427414,0.55118,2177.5,2177.4,0.65098531]
[1741500427611,0.55118,2177.5,2177.4,1.28418531]
[1741500429413,0.55118,2177.5,2177.4,0.64008531]
[1741500437520,3.2078,2177.7,2177.4,0.64008531]
[1741500437720,3.2078,2177.7,2177.5,0.6081]
[1741500438413,0.55116,2177.6,2177.5,0.6081]
[1741500438720,5.1998,2178.0,2177.5,1.10071397]
[1741500438915,0.55116,2177.6,2177.5,0.6081]
[1741500439217,5.1998,2178.0,2177.5,1.1007072]
[1741500439409,5.1998,2178.0,2177.5,0.6081]
[1741500439613,0.55112,2177.8,2177.5,1.15927]
[1741500439922,3.2078,2178.0,2177.6,0.49278582]
[1741500440120,3.2078,2178.0,2177.5,2.6001]
[1741500440318,0.55109,2177.9,2177.6,0.49277267]
[1741500440519,3.75887,2178.0,2177.7,1.04389267]
[1741500440719,3.2078,2178.0,2177.9,0.55108]
[1741500440913,3.2078,2178.0,2177.5,5.8079]
[1741500441121,3.2078,2178.0,2177.8,0.5511]
[1741500441422,3.2078,2178.0,2177.9,1.11292537]
[1741500441627,3.75886,2178.0,2177.9,1.11292537]
[1741500442117,3.75886,2178.0,2177.9,1.11302281]
[1741500442323,3.75886,2178.0,2177.9,0.62]
[1741500443520,0.55111,2177.8,2177.7,0.6441]
[1741500443720,0.55111,2177.8,2177.7,1.13724782]
[1741500444323,0.55111,2177.8,2177.7,0.6441]
[1741500445031,0.55111,2177.8,2177.7,1.13732349]
[1741500445729,0.55111,2177.8,2177.7,1.13736884]
[1741500447834,0.55111,2177.8,2177.7,0.6441]
[1741500448625,0.55111,2177.8,2177.7,1.13752644]
[1741500449833,0.55111,2177.8,2177.7,1.1375287]
[1741500451429,3.2078,2178.0,2177.7,1.1375287]
[1741500451629,0.55111,2177.9,2177.8,0.4934287]
[1741500451836,0.55111,2177.9,2177.8,0.49338975]
[1741500456040,0.55108,2177.9,2177.8,0.49326881]
[1741500457134,3.2078,2178.0,2177.7,0.6441]
[1741500457337,0.55111,2177.8,2177.7,0.6441]
[1741500457531,0.55111,2177.8,2177.7,1.13742789]
[1741500460637,0.55111,2177.8,2177.7,0.6441]
[1741500463439,0.55111,2177.8,2177.7,1.13804599]
[1741500464244,0.55111,2177.8,2177.7,1.13803919]
[1741500466043,0.55111,2177.8,2177.7,1.13831253]
[1741500466744,0.55111,2177.8,2177.7,1.13847121]
[1741500472253,0.55111,2177.8,2177.7,1.13875741]
[1741500472547,0.55111,2177.8,2177.7,1.13878142]
[1741500473051,0.55111,2177.8,2177.4,0.65788531]
[1741500473249,3.75896,2177.6,2177.5,0.49473664]
[1741500473652,0.55118,2177.5,2177.4,0.00688531]
[1741500473852,1.18888,2177.5,2177.4,0.5015313]
[1741500476347,1.18888,2177.5,2177.4,0.00688531]
[1741500476552,1.18888,2177.5,2177.4,0.50111689]
[1741500477352,1.18888,2177.5,2177.4,0.00688531]
[1741500477549,3.2078,2177.6,2177.4,0.50102425]
[1741500477756,0.55116,2177.6,2177.5,1.10170079]
[1741500477950,0.55116,2177.6,2177.5,1.70280079]
[1741500480151,3.75896,2177.6,2177.5,1.09520079]
[1741500480560,3.75896,2177.6,2177.5,1.09518401]
[1741500481057,3.75896,2177.6,2177.5,0.49408401]
[1741500481956,0.55116,2177.6,2177.5,0.49408401]
[1741500483453,0.55118,2177.5,2177.4,0.00688531]
[1741500483647,0.55118,2177.5,2177.4,0.50102117]
[1741500483852,0.55118,2177.5,2177.4,0.50102303]
[1741500486164,1.20608,2177.5,2177.4,0.50102303]
[1741500489563,2.48168,2177.5,2177.4,0.00688531]
[1741500490358,6.48168,2177.5,2177.4,0.00688531]
[1741500490662,6.93668,2177.5,2177.4,5.31e-06]
[1741500491566,2.93668,2177.5,2177.4,5.31e-06]
[1741500492166,1.20608,2177.5,2177.4,5.31e-06]
[1741500495369,5.20608,2177.5,2177.4,5.31e-06]
[1741500495670,1.20608,2177.5,2177.4,5.31e-06]
[1741500496073,1.66108,2177.5,2177.4,5.31e-06]
[1741500499861,5.66108,2177.5,2177.4,5.31e-06]
[1741500503066,3.66208,2177.5,2177.4,5.31e-06]
[1741500504072,7.1109,2177.5,2176.0,3.2078]
[1741500504276,0.55147,2176.4,2176.3,0.6216]
[1741500504573,0.55147,2176.4,2176.3,1.11531466]
[1741500505374,0.55146,2176.4,2176.3,1.11531466]
[1741500506875,0.55151,2176.2,2176.1,0.00688531]
[1741500507069,3.75931,2176.2,2176.1,0.00688531]
[1741500508073,3.2078,2176.2,2176.1,0.00688531]
[1741500508270,3.2078,2176.5,2176.1,4.00688531]
[1741500508573,3.2078,2176.5,2176.1,2.02688531]
[1741500508777,3.75925,2176.5,2176.2,0.55151]
[1741500508977,0.55145,2176.5,2176.3,0.6172]
[1741500509178,0.55145,2176.5,2176.4,0.6331]
[1741500509775,3.75925,2176.5,2176.4,0.6331]
[1741500510484,0.00688531,2176.6,2176.4,0.6331]
[1741500510870,3.75924,2176.5,2176.4,0.6331]
[1741500512968,3.2078,2176.5,2176.4,0.6331]
[1741500513173,0.55144,2176.5,2176.4,0.6331]
[1741500513369,3.75924,2176.5,2176.4,0.6331]
[1741500517377,0.55146,2176.4,2176.3,1.248]
[1741500517582,0.55146,2176.4,2176.3,0.6172]
[1741500519184,0.55151,2176.2,2176.1,0.60648531]
[1741500519484,3.75931,2176.2,2176.1,0.60648531]
[1741500519978,3.75931,2176.2,2176.1,0.00688531]
[1741500520179,7.75931,2176.2,2176.1,0.00688531]
[1741500520382,0.55162,2175.8,2175.7,3.29e-06]
[1741500520580,3.75942,2175.8,2175.7,3.29e-06]
[1741500521278,3.2078,2175.8,2175.7,3.29e-06]
[1741500521477,3.2078,2175.8,2175.7,1.20894329]
[1741500521673,3.2078,2175.8,2175.7,3.29e-06]
[1741500521880,0.5516,2175.9,2175.7,1.75035064]
[1741500522086,3.2078,2176.1,2175.7,1.25770329]
[1741500522381,3.2078,2176.1,2175.8,0.49263057]
[1741500522582,3.2078,2176.1,2175.7,1.25770329]
[1741500522583,0.55158,2176.0,2175.7,1.25770329]
[1741500522777,0.55158,2176.0,2175.8,0.49262355]
[1741500522983,0.55159,2175.9,2175.7,1.25770329]
[1741500523178,3.2078,2176.4,2175.8,0.49262891]
[1741500523391,3.2078,2176.4,2175.7,1.25770329]
[1741500523586,0.55156,2176.1,2175.8,1.04425743]
[1741500523781,0.55156,2176.1,2175.8,0.55161]
[1741500523975,0.55153,2176.2,2175.9,0.49264166]
[1741500524177,0.55149,2176.3,2176.0,0.5968]
[1741500524387,0.55151,2176.3,2176.1,1.2167]
[1741500525079,0.55151,2176.2,2176.1,1.2167]
[1741500525589,3.2078,2176.4,2176.1,1.2167]
[1741500525789,0.5515,2176.3,2176.1,1.2167]
[1741500526382,3.2078,2176.4,2176.1,1.2167]
[1741500526585,3.75928,2176.4,2176.1,1.76823]
[1741500527489,3.2078,2176.4,2176.2,0.5515]
[1741500527684,3.2078,2176.4,2176.1,1.2167]
[1741500527886,0.55147,2176.4,2176.1,1.76823]
[1741500528282,0.5515,2176.3,2176.1,1.2167]
[1741500528483,0.5515,2176.3,2176.2,0.49312714]
[1741500528684,0.5515,2176.3,2176.1,1.2167]
[1741500529184,0.5515,2176.3,2176.2,0.49330463]
[1741500529778,0.00688531,2176.6,2176.2,0.49330463]
[1741500530079,0.55148,2176.4,2176.1,1.76823]
[1741500530291,0.55148,2176.4,2176.2,0.49334299]
[1741500530479,0.55148,2176.4,2176.1,1.76822]
[1741500530684,0.55148,2176.4,2176.2,0.49352893]
[1741500530891,0.00688531,2176.6,2176.1,1.76822]
[1741500531088,0.00688531,2176.6,2176.2,0.49353053]
[1741500531285,0.55149,2176.3,2176.1,1.76823]
[1741500531491,0.55148,2176.4,2176.2,0.49365903]
[1741500531792,0.5515,2176.3,2176.1,1.2167]
[1741500531983,0.00688531,2176.6,2176.2,0.49366272]
[1741500532188,0.55149,2176.3,2176.1,1.2167]
[1741500532389,0.55149,2176.3,2176.2,0.49369027]
[1741500532692,0.55149,2176.3,2176.2,0.49380068]
[1741500532890,0.00688531,2176.6,2176.2,0.49380068]
[1741500533086,0.00688531,2176.6,2176.1,1.76823]
[1741500533285,0.00688531,2176.6,2176.2,0.49380057]
[1741500533286,0.55149,2176.4,2176.2,0.49380057]
[1741500533491,0.55149,2176.4,2176.3,0.49380057]
[1741500540808,0.00688531,2176.6,2176.3,0.49409863]
[1741500541111,0.55151,2176.2,2176.1,1.2167]
[1741500541308,0.55151,2176.2,2176.1,1.71080095]
[1741500542304,0.55151,2176.2,2176.1,1.71080577]
[1741500544398,0.55151,2176.2,2176.1,1.71084901]
[1741500545510,0.5515,2176.3,2176.1,1.71084901]
[1741500545812,0.5515,2176.3,2176.2,0.49414901]
[1741500546707,0.55148,2176.4,2176.2,1.04565901]
[1741500546910,0.55148,2176.4,2176.3,0.49414901]
[1741500547506,0.00688531,2176.6,2176.3,2.51814901]
[1741500547702,0.00688531,2176.6,2176.5,0.55144]
[1741500547907,3.2078,2176.7,2176.6,0.55141]
[1741500548110,3.2078,2176.7,2176.6,1.04555901]
[1741500548409,3.2078,2176.7,2176.6,1.04527862]
[1741500549012,0.00688531,2176.9,2176.6,4.49386862]
[1741500549212,0.00688531,2176.9,2176.7,2.52086862]
[1741500549413,0.00688531,2176.9,2176.8,0.49386862]
[1741500549608,0.00688531,2176.9,2176.8,1.67182862]
[1741500549812,3.2078,2177.3,2177.1,0.55126]
[1741500550115,3.2078,2177.3,2177.2,1.73022999]
[1741500550313,0.5512,2177.5,2177.2,2.28147999]
[1741500550516,0.5512,2177.5,2177.3,0.49352999]
[1741500550713,0.5512,2177.5,2177.2,1.78795]
[1741500551014,0.55805531,2177.6,2177.3,1.04432942]
[1741500551205,0.00688531,2177.6,2177.4,0.49309942]
[1741500551512,0.55119,2177.5,2177.3,3.2078]
[1741500551910,0.55119,2177.5,2177.2,1.78795]
[1741500552113,0.55119,2177.5,2177.3,0.49278641]
[1741500552311,0.55119,2177.5,2177.3,0.6012]
[1741500552518,0.00688531,2177.6,2177.3,0.6012]
[1741500552822,0.55121,2177.4,2177.3,0.6012]
[1741500553418,0.55124,2177.3,2177.2,0.6266]
[1741500554821,0.5986,2177.5,2177.2,0.6266]
[1741500555016,0.55119,2177.5,2177.3,0.653]
[1741500555213,0.60498531,2177.6,2177.3,0.653]
[1741500555419,0.60498531,2177.6,2177.3,1.20423]
[1741500555717,0.5512,2177.5,2177.3,0.653]
[1741500556020,0.5512,2177.5,2177.3,1.20423]
[1741500556222,0.5512,2177.5,2177.3,0.653]
[1741500556415,0.55131,2177.0,2176.9,0.49195227]
[1741500556618,0.55134,2176.9,2176.8,20.627]
[1741500556813,0.55139,2176.7,2176.6,0.00688531]
[1741500557312,3.75919,2176.7,2176.6,0.00688531]
[1741500558724,1.37859,2176.6,2176.0,21.2791]
[1741500559125,0.55153,2176.2,2176.0,21.2791]
[1741500559829,0.00688531,2176.3,2176.1,0.55152]
[1741500560727,0.55838531,2176.3,2176.0,23.87466]
[1741500560924,0.55838531,2176.3,2176.1,0.49210967]
[1741500561120,0.55838531,2176.3,2176.0,23.3231]
[1741500561327,0.55152,2176.2,2176.0,23.3231]
[1741500561525,0.55839531,2176.3,2176.0,23.3231]
[1741500561726,0.55154,2176.2,2176.0,23.3231]
[1741500561928,0.55154,2176.1,2176.0,23.3231]
[1741500562427,0.55154,2176.1,2176.0,22.666]
[1741500562624,0.55154,2176.1,2176.0,20.622]
[1741500563421,0.5936,2176.2,2176.0,20.622]
[1741500563627,0.55152,2176.2,2176.0,20.622]
[1741500563824,0.00688531,2176.3,2176.0,20.622]
[1741500564126,0.55837531,2176.3,2176.0,21.17354]
[1741500564523,0.55154,2176.1,2176.0,20.622]
[1741500565031,0.55154,2176.2,2176.0,20.622]
[1741500565723,0.55153,2176.2,2176.0,20.622]
[1741500565927,0.00688531,2176.3,2176.0,24.622]
[1741500566124,4.58609,2177.0,2176.2,3.2078]
[1741500566329,0.55147,2176.4,2176.2,3.2078]
[1741500566530,0.55147,2176.4,2176.2,3.75931]
[1741500566719,0.55145,2176.5,2176.2,3.75931]
[1741500567526,0.55145,2176.5,2176.2,3.2078]
[1741500567827,0.55145,2176.5,2176.2,3.7593]
[1741500568429,0.60688531,2176.6,2176.2,3.7593]
[1741500568630,0.55145,2176.5,2176.2,3.7593]
[1741500568833,0.55145,2176.5,2176.3,0.55149]
[1741500569030,0.55145,2176.5,2176.2,3.75929]
[1741500569232,0.60688531,2176.6,2176.2,3.2078]
[1741500569530,0.55144,2176.5,2176.3,0.55148]
[1741500569729,0.60688531,2176.6,2176.2,3.2078]
[1741500569931,0.60688531,2176.6,2176.3,0.55148]
[1741500570132,1.15831531,2176.6,2176.3,1.18938]
[1741500570729,3.2078,2176.4,2176.0,20.622]
[1741500571130,0.55154,2176.1,2176.0,20.622]
[1741500572238,0.6422,2176.3,2176.0,20.622]
[1741500572734,1.1937,2176.3,2176.0,21.17354]
[1741500573534,0.60688531,2176.6,2176.0,20.622]
[1741500573738,0.55145,2176.5,2176.2,0.5515]
[1741500574034,0.00688531,2176.6,2176.5,0.55144]
[1741500574337,3.2078,2177.2,2176.4,0.593]
[1741500574530,0.55138,2176.8,2176.5,0.55142]
[1741500575126,0.55134,2176.9,2176.4,0.593]
[1741500575429,0.00688531,2176.9,2176.5,2.55103666]
[1741500575735,0.5514,2176.7,2176.5,2.059]
[1741500575935,0.6069,2176.8,2176.5,2.059]
[1741500576132,0.55139,2176.7,2176.5,2.059]
[1741500576628,1.15829,2176.8,2176.5,2.61043]
[1741500577028,0.55139,2176.7,2176.5,2.059]
[1741500577435,0.5514,2176.7,2176.5,2.059]
[1741500577633,0.6069,2176.8,2176.5,2.059]
[1741500577935,0.55141,2176.7,2176.5,2.059]
[1741500578138,0.6069,2176.8,2176.5,2.059]
[1741500578338,0.55141,2176.6,2176.5,2.059]
[1741500578740,3.8147,2176.8,2176.5,2.059]
[1741500578939,0.55141,2176.6,2176.5,2.059]
[1741500579735,0.55149,2176.3,2176.2,3.2078]
[1741500579942,0.55154,2176.1,2176.0,23.3058]
[1741500580131,0.55154,2176.1,2176.0,20.622]
[1741500581138,3.2078,2176.5,2176.0,20.622]
[1741500581339,0.55154,2176.1,2176.0,21.2458]
[1741500582441,0.55154,2176.1,2176.0,20.622]
[1741500583334,3.75934,2176.1,2176.0,20.622]
[1741500584444,0.55153,2176.2,2176.0,20.622]
[1741500584645,0.55153,2176.2,2176.0,21.17355]
[1741500585036,0.55153,2176.2,2176.0,21.78225]
[1741500585535,0.55153,2176.2,2176.0,21.2307]
[1741500585740,3.8095,2176.4,2176.0,21.2307]
[1741500586042,0.5515,2176.3,2176.0,21.78225]
[1741500586346,0.5515,2176.3,2176.1,0.4932973]
[1741500586537,3.8095,2176.4,2176.0,21.2307]
[1741500586538,0.55153,2176.2,2176.0,21.2307]
[1741500586841,0.55153,2176.2,2176.1,0.4938167]
[1741500587237,3.8095,2176.4,2176.1,0.4938167]
[1741500587439,0.55149,2176.3,2176.2,0.4938167]
[1741500587741,0.55156,2176.0,2175.9,0.00688531]
[1741500588042,1.16244,2176.2,2175.9,1.05232318]
[1741500588343,0.55154,2176.1,2176.0,0.49385787]
[1741500588940,0.6109,2176.2,2175.9,0.00688531]
[1741500589242,0.55156,2176.0,2175.9,0.00688531]
[1741500589442,0.55156,2176.0,2175.9,0.50070259]
[1741500591744,0.55153,2176.2,2175.9,0.50070259]
[1741500591940,0.55151,2176.2,2176.0,1.10761728]
[1741500592144,0.55151,2176.2,2176.1,1.10721728]
[1741500592339,0.55151,2176.2,2176.1,1.75491728]
[1741500592541,0.55151,2176.3,2176.1,1.75491728]
[1741500592741,0.55151,2176.3,2176.2,0.49381728]
[1741500592942,0.55151,2176.3,2176.2,0.49369233]
[1741500593343,0.6017,2176.4,2176.1,1.2611]
[1741500593548,0.55149,2176.3,2176.2,0.49370795]
[1741500595750,0.6017,2176.4,2176.1,1.2611]
[1741500595943,0.55151,2176.2,2176.1,1.2611]
[1741500596243,0.55151,2176.2,2176.1,1.7548059]
[1741500599549,0.55151,2176.2,2176.1,1.2611]
[1741500599750,0.55151,2176.2,2176.1,1.75486532]
[1741500601658,0.55156,2176.0,2175.9,0.00688531]
[1741500601861,0.55156,2176.0,2175.9,0.50069675]
[1741500602056,0.55155,2176.1,2175.9,0.50069675]
[1741500602356,0.55155,2176.1,2176.0,0.49381144]
[1741500602653,0.55155,2176.1,2176.0,2.40391144]
[1741500603753,0.55155,2176.1,2176.0,0.49381144]
[1741500604457,0.55156,2176.0,2175.9,0.00688531]
[1741500604652,1.18216,2176.0,2175.9,0.50078649]
[1741500605046,1.18216,2176.0,2175.9,0.50078981]
[1741500607254,1.18216,2176.0,2175.9,0.00688531]
[1741500607855,5.18216,2176.0,2175.9,0.00688531]
[1741500608949,1.18216,2176.0,2175.9,0.00688531]
[1741500609354,5.18216,2176.0,2175.9,0.00688531]
[1741500609563,4.6306,2176.0,2175.7,3.29e-06]
[1741500609756,3.75942,2175.8,2175.7,3.29e-06]
[1741500612269,0.6166,2175.9,2175.7,3.29e-06]
[1741500612561,3.6628,2176.1,2175.8,0.49372444]
[1741500612761,3.2078,2176.4,2175.9,4.41352444]
[1741500612967,3.2078,2176.4,2176.0,0.49372444]
[1741500613166,0.5515,2176.3,2176.1,0.49372444]
[1741500613365,0.5515,2176.3,2176.0,0.55156]
[1741500613366,3.2078,2176.4,2176.2,0.49365147]
[1741500613566,3.2078,2176.4,2176.3,1.14185147]
[1741500613863,0.55141,2176.7,2176.3,1.69333147]
[1741500614165,3.21468531,2176.9,2176.4,1.70125147]
[1741500614166,0.55141,2176.6,2176.4,1.70125147]
[1741500614371,0.55141,2176.6,2176.5,0.49365147]
[1741500615668,0.5514,2176.7,2176.5,0.49365147]
[1741500615867,3.21468531,2176.9,2176.4,1.2076]
[1741500616071,0.55144,2176.5,2176.4,1.2076]
[1741500616368,0.55144,2176.5,2176.4,1.70083733]
[1741500616965,0.55144,2176.5,2176.4,0.49323733]
[1741500617167,0.615,2176.8,2176.1,5.2658]
[1741500617168,3.2078,2176.6,2176.1,2.058]
[1741500617477,0.55149,2176.3,2176.2,0.49309733]
[1741500619477,0.55149,2176.3,2176.2,0.49306338]
[1741500619975,3.2078,2176.6,2176.2,0.49306338]
[1741500620172,0.5514,2176.7,2176.3,3.70086338]
[1741500620476,0.5514,2176.7,2176.4,1.70666338]
[1741500620770,0.5514,2176.7,2176.5,1.15066338]
[1741500620972,0.55141,2176.6,2176.5,0.6576]
[1741500621168,0.55141,2176.6,2176.5,1.15051975]
[1741500621569,0.55141,2176.6,2176.5,0.6576]
[1741500621971,3.21468531,2176.9,2176.4,0.5989]
[1741500622169,0.55144,2176.5,2176.4,0.5989]
[1741500622371,0.55144,2176.5,2176.4,1.09173889]
[1741500624176,0.55143,2176.6,2176.4,1.09173889]
[1741500624375,0.55143,2176.6,2176.5,0.5956]
[1741500624580,3.21468531,2176.9,2176.5,0.5956]
[1741500625279,0.55141,2176.6,2176.5,0.5956]
[1741500630179,0.55146,2176.4,2176.3,3.2078]
[1741500630484,0.55146,2176.4,2176.3,0.49242777]
[1741500631084,0.55156,2176.0,2175.9,20.633]
[1741500635288,0.5947,2176.3,2176.0,0.55156]
[1741500635485,0.55149,2176.3,2176.0,0.55156]
[1741500635682,3.2078,2176.5,2176.0,2.054]
[1741500635881,3.75925,2176.5,2176.2,0.5515]
[1741500636086,0.55146,2176.4,2176.3,0.6175]
[1741500636291,3.2078,2176.5,2176.3,0.6175]
[1741500636292,0.55146,2176.5,2176.3,0.6175]
[1741500636584,0.55146,2176.4,2176.3,0.6175]
[1741500637986,3.2078,2176.5,2176.0,2.053]
[1741500638187,0.55154,2176.1,2176.0,2.053]
[1741500638391,0.55154,2176.1,2176.0,0.49272061]
[1741500638886,4.55154,2176.1,2176.0,0.49272061]
[1741500639088,4.55154,2176.1,2175.7,3.29e-06]
[1741500639089,0.55162,2175.8,2175.7,3.29e-06]
[1741500641494,3.75942,2175.8,2175.7,3.29e-06]
[1741500642294,5.81842,2175.8,2175.7,3.29e-06]
[1741500643588,9.81842,2175.8,2175.7,3.29e-06]
[1741500645695,5.81842,2175.8,2175.7,3.29e-06]
[1741500645996,9.81842,2175.8,2175.7,3.29e-06]
[1741500646696,0.55177,2175.2,2175.1,0.49238362]
[1741500646897,0.55179,2175.1,2175.0,20.628]
[1741500648092,3.2078,2175.2,2174.8,0.00688531]
[1741500648294,0.55197,2174.4,2174.3,3.2078]
[1741500648496,0.55202,2174.2,2174.1,0.01474326]
[1741500648692,3.75982,2174.2,2174.1,0.01474326]
[1741500648999,3.2078,2174.5,2174.1,0.01474326]
[1741500649198,0.55202,2174.2,2174.1,0.01474326]
[1741500649395,0.55202,2174.2,2174.1,0.02162857]
[1741500650593,3.75982,2174.2,2174.1,0.02162857]
[1741500650793,3.2078,2174.2,2174.1,0.02162857]
[1741500651302,0.55202,2174.2,2174.1,0.02162857]
[1741500651496,3.75982,2174.2,2174.1,0.02162857]
[1741500652892,0.55202,2174.2,2174.1,0.02162857]
[1741500655592,3.75982,2174.2,2174.1,0.02162857]
[1741500660901,0.55202,2174.2,2174.1,0.02162857]
[1741500661096,3.75982,2174.2,2174.1,0.02162857]
[1741500668906,0.55202,2174.3,2174.1,0.02162857]
[1741500669107,3.2078,2174.5,2174.1,0.02162857]
[1741500669305,0.55198,2174.4,2174.1,0.57365857]
[1741500669508,3.2078,2174.8,2174.2,2.087]
[1741500669697,3.2078,2174.8,2174.4,0.55196]
[1741500670007,3.2078,2174.8,2174.3,0.6143]
[1741500670008,0.55197,2174.4,2174.3,0.6143]
[1741500671903,0.55202,2174.2,2174.1,0.02162857]
[1741500672109,3.75982,2174.2,2174.1,0.02162857]
[1741500672304,5.2978,2174.2,2173.3,3.2078]
[1741500672509,5.2978,2174.2,2173.4,1.76811979]
[1741500672510,5.82192,2174.1,2173.4,1.76811979]
[1741500672807,0.5522,2173.5,2173.4,1.2758]
[1741500673107,0.55218,2173.6,2173.4,1.76812655]
[1741500673307,0.55217,2173.6,2173.5,0.49232655]
[1741500673513,0.00690147,2173.7,2173.5,0.49232655]
[1741500673712,0.00690147,2173.7,2173.6,1.04449655]
[1741500673904,3.2078,2173.8,2173.6,1.04449655]
[1741500673905,3.6628,2174.1,2173.6,0.49232655]
[1741500674105,3.6628,2174.1,2173.7,0.49232655]